bitfinex/quotes_ETHUSD_20210701
["timestamp","ask_amount","ask_price","bid_price","bid_amount"]
[1625168060285,10.8999,2089.3,2088.5,7.17684]
[1625168060584,13.36829472,2089.4,2088.5,7.17684]
[1625168061329,13.36829472,2089.4,2088.3,7.17699]
[1625168061539,13.36829472,2089.4,2088.3,12.18699]
[1625168061783,13.36829472,2089.4,2088.3,12.20834719]
[1625168061880,13.31829472,2089.4,2088.3,5.03135719]
[1625168061983,13.31829472,2089.4,2088.2,14.57966]
[1625168062335,13.26829472,2089.4,2088.2,14.57966]
[1625168062431,13.26829472,2089.4,2088.6,7.17601]
[1625168062781,6.09085472,2089.4,2088.6,7.17601]
[1625168063100,10.3627,2089.7,2088.6,7.19568658]
[1625168063190,10.6706,2089.8,2088.6,7.19568658]
[1625168063288,10.6706,2089.8,2088.6,0.01967658]
[1625168063388,15.6806,2089.8,2088.3,7.30636443]
[1625168063539,7.17586,2089.6,2088.7,7.1757]
[1625168064641,7.17586,2089.6,2088.5,9.5676]
[1625168064746,7.17586,2089.6,2088.5,14.5776]
[1625168065529,7.17586,2089.6,2088.5,9.5676]
[1625168065680,7.17586,2089.6,2088.3,3.6]
[1625168065775,16.98816,2089.6,2088.3,8.61]
[1625168066428,20.5768985,2089.6,2088.3,15.78694]
[1625168066525,13.4010385,2089.6,2088.3,15.78694]
[1625168066879,19.5800385,2089.6,2088.3,15.78694]
[1625168068313,26.4500385,2089.6,2088.3,15.78694]
[1625168068406,7.17731,2089.2,2088.3,15.78694]
[1625168069209,7.17731,2089.2,2088.3,8.61]
[1625168069360,0.07262268,2089.1,2088.3,8.61]
[1625168069609,2.7316,2089.3,2088.3,5.01]
[1625168069610,7.17819,2089.0,2088.3,5.01]
[1625168069911,7.17819,2089.0,2088.0,23.05289]
[1625168069913,7.17819,2089.0,2088.0,18.04289]
[1625168070015,7.17819,2089.0,2088.0,7.17819]
[1625168071913,7.17819,2089.0,2088.0,12.18819]
[1625168072302,1.2077,2089.3,2088.0,12.18819]
[1625168072401,9.56975,2089.4,2088.0,12.18819]
[1625168072503,14.57975,2089.4,2088.0,12.20937896]
[1625168072603,14.57975,2089.4,2088.0,12.18819]
[1625168073053,10.7783,2089.5,2088.0,12.18819]
[1625168073203,15.7883,2089.5,2088.1,0.09792411]
[1625168073303,15.7883,2089.5,2088.1,0.07883867]
[1625168073703,23.7883,2089.5,2088.1,0.07883867]
[1625168073855,25.2098,2089.5,2087.9,9.5706]
[1625168073956,7.17872,2088.8,2087.9,9.5706]
[1625168074056,10.97392,2088.8,2087.9,9.5706]
[1625168074754,10.97392,2088.8,2087.8,10.4528]
[1625168075204,10.97392,2088.8,2087.6,7.1791]
[1625168075354,11.02570239,2088.8,2087.6,12.1891]
[1625168075456,11.02570239,2088.8,2087.6,7.1791]
[1625168075457,10.97392,2088.8,2087.6,7.1791]
[1625168075656,10.97392,2088.8,2087.6,9.10195865]
[1625168075756,3.7952,2088.8,2087.6,4.09195865]
[1625168075859,3.7952,2088.8,2087.7,0.08]
[1625168076106,3.7952,2088.8,2087.6,6.7460086]
[1625168076208,3.7952,2088.8,2087.6,11.7560086]
[1625168076407,3.7952,2088.8,2087.6,11.25331995]
[1625168076758,3.7952,2088.8,2088.1,7.17806]
[1625168076856,10.4476,2089.2,2088.1,7.17806]
[1625168076957,10.6953,2089.3,2088.1,7.17806]
[1625168078410,7.17733,2089.1,2088.1,7.17806]
[1625168080063,17.87178,2089.3,2088.1,7.17806]
[1625168080368,17.87178,2089.3,2088.2,0.08]
[1625168080466,17.87178,2089.3,2088.2,0.23]
[1625168080762,17.87178,2089.3,2088.2,0.15]
[1625168081019,9.56955,2089.4,2088.2,0.15]
[1625168081020,6.179,2089.6,2088.4,0.08859811]
[1625168081180,24.3287542,2089.8,2088.9,7.17485]
[1625168081181,6.87,2089.8,2088.9,7.17485]
[1625168081282,0.0109117,2089.9,2088.9,12.24344148]
[1625168081374,0.0109117,2089.9,2089.0,0.16997373]
[1625168081474,0.0109117,2089.9,2089.0,0.32091726]
[1625168081576,0.0109117,2089.9,2088.9,5.048]
[1625168081674,0.0109117,2089.9,2089.0,0.15]
[1625168082072,6.8809117,2089.9,2089.0,0.15]
[1625168082625,6.8809117,2089.9,2089.1,9.56459]
[1625168082828,6.8809117,2089.9,2088.9,0.01185472]
[1625168082918,6.8809117,2089.9,2089.1,0.15]
[1625168082919,16.3572117,2089.9,2089.1,0.15]
[1625168083019,16.3572117,2089.9,2088.9,0.01185472]
[1625168083020,0.2,2089.8,2088.9,0.01185472]
[1625168084427,7.17647,2089.4,2088.9,0.01185472]
[1625168084523,11.74747,2089.4,2088.9,0.01185472]
[1625168084729,4.571,2089.4,2088.9,0.01185472]
[1625168084926,0.04,2089.3,2088.9,0.01185472]
[1625168085909,7.17664,2089.2,2088.9,0.01185472]
[1625168086308,4.571,2089.4,2088.9,0.01185472]
[1625168086764,0.08,2089.3,2088.9,0.01185472]
[1625168087065,7.17816,2089.1,2088.9,0.01185472]
[1625168087265,12.18816,2089.1,2088.9,0.01185472]
[1625168087420,12.18816,2089.1,2088.9,4.72e-06]
[1625168087421,30.15,2089.0,2088.9,4.72e-06]
[1625168087521,35.16,2089.0,2088.9,4.72e-06]
[1625168087621,43.16,2089.0,2088.9,4.72e-06]
[1625168087765,44.2218,2089.0,2088.9,4.72e-06]
[1625168088003,0.00599528,2088.8,2088.4,0.01290259]
[1625168088107,44.2218,2089.0,2088.4,0.01290259]
[1625168088254,15.1240557,2088.7,2088.4,0.01290259]
[1625168088449,20.9536157,2088.7,2088.4,0.01290259]
[1625168090303,0.2,2088.6,2088.4,0.01290259]
[1625168090451,7.38054,2088.6,2088.4,0.01290259]
[1625168090552,12.39054,2088.6,2088.4,0.01290259]
[1625168091605,23.36,2088.5,2088.4,0.01290259]
[1625168091706,0.16,2088.5,2088.4,0.01290259]
[1625168091803,5.17,2088.5,2088.4,0.01290259]
[1625168092005,0.16,2088.5,2088.4,0.01290259]
[1625168092102,5.17,2088.5,2088.4,0.01290259]
[1625168092358,0.16,2088.5,2088.4,0.01290259]
[1625168092458,5.17,2088.5,2088.4,0.01290259]
[1625168092562,0.16,2088.5,2088.4,0.01290259]
[1625168092658,5.17,2088.5,2088.4,0.01290259]
[1625168092909,0.16,2088.5,2088.4,0.01290259]
[1625168093012,5.17,2088.5,2088.4,0.01290259]
[1625168093110,0.16,2088.5,2088.4,0.01290259]
[1625168098125,8.11244,2088.6,2088.4,0.01290259]
[1625168098270,3.5902157,2088.7,2088.4,0.01290259]
[1625168098368,10.6378,2088.9,2088.4,0.01290259]
[1625168099218,17.8201,2089.2,2088.4,0.01290259]
[1625168099317,3.5889366,2089.0,2088.4,0.01290259]
[1625168099421,10.7664266,2089.0,2088.4,0.01290259]
[1625168100069,16.43998,2089.2,2088.4,0.01290259]
[1625168100070,6.87,2089.2,2088.4,0.01290259]
[1625168100974,19.05644,2089.2,2088.4,0.01290259]
[1625168101072,8.5534401,2089.1,2088.4,0.01290259]
[1625168101324,8.4534401,2089.1,2088.4,0.01290259]
[1625168102038,8.4534401,2089.1,2088.1,0.11290259]
[1625168102039,26.6,2089.0,2088.1,0.11290259]
[1625168102294,0.01290259,2088.9,2087.9,0.01404914]
[1625168102492,0.2,2088.8,2087.9,0.01404914]
[1625168102689,3.78981,2088.8,2087.9,0.01404914]
[1625168102792,3.5895772,2088.5,2087.9,0.01404914]
[1625168102939,8.0950772,2088.5,2087.9,0.01404914]
[1625168103041,13.1050772,2088.5,2087.9,0.01404914]
[1625168103138,0.16,2088.4,2087.9,0.01404914]
[1625168104448,7.18076,2088.2,2087.9,0.01404914]
[1625168104546,12.19076,2088.2,2087.9,0.01404914]
[1625168104844,0.06,2088.1,2087.9,0.01404914]
[1625168105147,9.57435,2088.3,2087.9,0.01404914]
[1625168105495,14.58435,2088.3,2087.9,0.01404914]
[1625168105597,9.57435,2088.3,2087.9,0.01404914]
[1625168105695,0.08,2088.2,2087.9,0.01404914]
[1625168106079,7.18017,2088.1,2087.9,0.01404914]
[1625168106278,17.13,2088.0,2087.9,0.01404914]
[1625168106380,4.7352,2088.0,2087.9,0.01404914]
[1625168107080,4.6552,2088.0,2087.9,0.01404914]
[1625168109474,4.6552,2088.0,2087.4,0.01528364]
[1625168109576,17.15,2087.9,2087.2,0.03986025]
[1625168109678,17.21,2087.9,2087.2,0.03986025]
[1625168109776,7.18214,2087.6,2087.2,0.03986025]
[1625168110125,3.5910658,2087.8,2087.2,0.03986025]
[1625168110274,0.01528364,2087.9,2087.2,0.03986025]
[1625168111479,0.01528364,2087.9,2087.4,7.17981]
[1625168112811,0.01528364,2087.9,2087.2,7.22024025]
[1625168113113,0.12,2087.8,2087.2,0.03986025]
[1625168113509,0.01528364,2087.9,2087.2,0.03986025]
[1625168113958,7.19642364,2087.9,2087.2,0.03986025]
[1625168115730,0.01528364,2087.9,2087.2,0.03986025]
[1625168115883,0.01528364,2087.9,2087.2,0.18986025]
[1625168116229,0.01528364,2087.9,2087.3,2.66646138]
[1625168116424,0.01528364,2087.9,2087.3,9.22986138]
[1625168116527,0.01528364,2087.9,2087.6,9.57129]
[1625168116776,0.01528364,2087.9,2087.6,14.58129]
[1625168117231,0.01528364,2087.9,2087.6,5.01]
[1625168117331,0.01528364,2087.9,2087.3,9.57254]
[1625168117428,3.23688364,2087.9,2087.3,9.57254]
[1625168118175,3.23688364,2087.9,2087.3,14.58254]
[1625168118331,3.23688364,2087.9,2087.3,5.01]
[1625168118475,3.23688364,2087.9,2087.2,0.03986025]
[1625168118781,0.2,2087.8,2087.2,0.03986025]
[1625168118877,3.790895,2087.8,2087.2,0.03986025]
[1625168119026,8.800895,2087.8,2087.2,0.03986025]
[1625168119223,0.2,2087.7,2087.2,0.03986025]
[1625168119378,7.18313,2087.5,2087.2,0.03986025]
[1625168119528,3.5915997,2087.4,2087.2,6.025e-05]
[1625168119678,9.5155997,2087.4,2087.2,6.025e-05]
[1625168119777,0.2,2087.3,2087.2,6.025e-05]
[1625168120233,0.2,2087.3,2087.2,0.94974905]
[1625168120442,7.18488,2087.1,2086.9,0.01659055]
[1625168120534,12.19488,2087.1,2086.9,0.01659055]
[1625168120638,20.25,2087.0,2086.9,0.01659055]
[1625168120938,0.2,2087.0,2086.9,0.01659055]
[1625168121286,0.2,2087.0,2086.4,0.52375472]
[1625168121287,17.0,2086.9,2086.4,0.52375472]
[1625168121389,21.0384,2086.9,2086.4,0.52375472]
[1625168121486,7.18641,2086.7,2086.4,0.52375472]
[1625168121691,0.2,2086.6,2086.4,0.52375472]
[1625168122286,9.0484,2086.9,2086.4,0.52375472]
[1625168122537,17.0484,2086.9,2086.4,0.52375472]
[1625168122639,7.18641,2086.7,2086.4,0.52375472]
[1625168123429,4.0384,2086.9,2086.4,0.52375472]
[1625168123688,0.1,2086.6,2086.4,0.52375472]
[1625168123930,16.23424,2086.9,2086.4,0.52375472]
[1625168124033,11.22424,2086.9,2086.4,0.52375472]
[1625168124129,16.23424,2086.9,2086.4,0.52375472]
[1625168125678,0.2,2086.8,2086.4,0.52375472]
[1625168126628,7.386,2086.8,2086.4,0.52375472]
[1625168126876,12.396,2086.8,2086.4,0.52375472]
[1625168127025,0.2,2086.7,2086.4,0.52375472]
[1625168128477,7.3864,2086.7,2086.4,0.52375472]
[1625168129489,0.08,2086.6,2086.4,0.52375472]
[1625168130092,7.26613,2086.6,2086.4,0.52375472]
[1625168130240,7.18613,2086.6,2086.4,0.52375472]
[1625168130340,7.18613,2086.6,2086.4,0.47375472]
[1625168133137,7.18613,2086.6,2086.4,0.42375472]
[1625168133392,0.16,2086.5,2086.4,0.42375472]
[1625168133597,0.01794952,2086.9,2086.5,26.7]
[1625168133752,0.01794952,2086.9,2086.5,31.192]
[1625168133853,0.01794952,2086.9,2086.5,37.7744]
[1625168134355,0.01659055,2087.4,2086.6,29.95]
[1625168134455,0.01659055,2087.4,2086.7,0.09605086]
[1625168134551,0.01659055,2087.4,2086.6,35.16672025]
[1625168135057,0.01659055,2087.4,2086.7,0.15]
[1625168135158,0.01659055,2087.4,2086.7,4.3543]
[1625168135358,0.01659055,2087.4,2086.8,0.14]
[1625168135458,0.01659055,2087.4,2086.8,2.80646138]
[1625168135561,0.01659055,2087.4,2086.9,0.15]
[1625168135706,0.01659055,2087.4,2086.9,0.23]
[1625168135808,0.01659055,2087.4,2087.1,7.18027]
[1625168136108,0.01659055,2087.4,2086.9,0.15]
[1625168136253,0.01659055,2087.4,2086.6,12.83187025]
[1625168136454,0.01659055,2087.4,2086.6,17.84187025]
[1625168136552,0.01659055,2087.4,2086.7,0.08]
[1625168137955,0.01659055,2087.4,2086.6,17.84187025]
[1625168138304,5.04489055,2087.4,2086.6,17.84187025]
[1625168138403,5.04489055,2087.4,2086.6,19.48927025]
[1625168138503,5.04489055,2087.4,2086.6,16.38927025]
[1625168138600,5.04489055,2087.4,2086.6,14.74187025]
[1625168141101,5.04489055,2087.4,2086.6,5.16]
[1625168141196,5.04489055,2087.4,2086.6,0.15]
[1625168141949,5.04489055,2087.4,2086.4,0.42375472]
[1625168142056,0.31781331,2087.3,2086.4,0.42375472]
[1625168142154,7.18553,2086.9,2086.4,0.42375472]
[1625168142254,10.61303,2086.9,2086.4,0.42375472]
[1625168142347,0.12,2086.8,2086.4,0.42375472]
[1625168142805,3.4275,2086.9,2086.4,0.42375472]
[1625168143257,7.1859,2086.6,2086.4,0.42375472]
[1625168143357,3.4275,2086.9,2086.4,0.42375472]
[1625168145356,3.4275,2086.9,2086.4,7.60667472]
[1625168145504,0.01659055,2087.4,2086.4,7.55667472]
[1625168145604,0.01659055,2087.4,2086.4,12.56667472]
[1625168145760,0.01659055,2087.4,2086.5,0.06]
[1625168145946,0.01659055,2087.4,2086.4,12.56667472]
[1625168146348,0.01659055,2087.4,2086.4,5.40170424]
[1625168146503,7.19970055,2087.4,2086.4,0.39170424]
[1625168146801,0.16,2087.3,2086.4,0.39170424]
[1625168146900,3.2058,2087.3,2086.4,0.29170424]
[1625168147201,0.16,2087.2,2086.4,0.29170424]
[1625168147552,7.18572,2086.9,2086.4,0.29170424]
[1625168149097,10.7783416,2086.9,2086.4,0.29170424]
[1625168149197,7.18604,2086.7,2086.4,0.29170424]
[1625168149301,10.93994,2086.7,2086.4,0.29170424]
[1625168149398,0.1,2086.6,2086.4,0.29170424]
[1625168149653,3.6931039,2086.6,2086.4,0.29170424]
[1625168150297,31.79621,2086.5,2086.4,4.24e-06]
[1625168150488,44.80621,2086.5,2086.4,4.24e-06]
[1625168150591,21.59581,2086.5,2086.4,4.24e-06]
[1625168150691,13.59581,2086.5,2086.4,4.24e-06]
[1625168150788,8.58581,2086.5,2086.4,4.24e-06]
[1625168150991,13.59581,2086.5,2086.4,4.24e-06]
[1625168151146,13.59581,2086.5,2085.9,0.01933563]
[1625168151292,4.7321975,2086.3,2085.9,0.01933563]
[1625168151541,11.47433,2086.1,2085.9,0.01933563]
[1625168151741,8.63731196,2086.1,2085.9,0.01933563]
[1625168152149,4.287,2086.1,2085.9,0.01933563]
[1625168152620,0.0319704,2086.1,2085.9,7.20364563]
[1625168152716,0.0319704,2086.1,2085.7,9.57908]
[1625168152819,0.0319704,2086.1,2085.4,0.02072001]
[1625168152820,17.15,2086.0,2085.4,0.02072001]
[1625168152920,28.3,2085.9,2084.7,0.04827908]
[1625168153118,28.45,2085.9,2084.7,0.04827908]
[1625168153216,28.47072001,2085.9,2084.4,0.02335358]
[1625168153321,2.29136791,2085.8,2084.4,0.02335358]
[1625168153418,3.6,2085.6,2084.3,3.85535358]
[1625168153523,15.14206365,2085.5,2084.2,0.13949559]
[1625168153674,0.02335358,2084.9,2084.2,0.13949559]
[1625168153775,0.02335358,2084.9,2084.0,7.962e-05]
[1625168153776,29.9,2084.8,2084.0,7.962e-05]
[1625168153891,3.59783,2084.4,2084.0,7.962e-05]
[1625168154015,8.60783,2084.4,2084.0,7.962e-05]
[1625168154142,30.05,2084.3,2083.4,0.05341147]
[1625168154238,30.10993752,2084.3,2083.4,0.00341147]
[1625168154317,45.1175827,2084.3,2083.0,0.13957387]
[1625168154418,3.5983106,2084.0,2083.0,0.13957387]
[1625168154524,10.8667743,2084.0,2083.0,0.13957387]
[1625168154628,10.8667743,2084.0,2082.0,52.02621012]
[1625168154629,13.2615,2083.9,2082.0,52.02621012]
[1625168154777,7.19929,2082.9,2082.0,52.02621012]
[1625168154872,11.30239,2082.9,2082.0,52.02621012]
[1625168155120,11.30239,2082.9,2082.0,51.97621012]
[1625168156074,11.30239,2082.9,2082.1,15.0]
[1625168156173,0.14597627,2083.5,2082.2,29.9]
[1625168156325,0.14597627,2083.5,2082.3,15.0]
[1625168156474,8.0203,2083.2,2082.1,0.04]
[1625168156626,13.0303,2083.2,2082.1,0.04]
[1625168156721,16.0203,2083.2,2082.1,0.04]
[1625168156819,8.0203,2083.2,2082.1,0.04]
[1625168157039,0.14,2083.1,2082.1,0.04]
[1625168157188,13.0303,2083.2,2082.1,0.04]
[1625168157389,21.0303,2083.2,2082.1,0.04]
[1625168157536,7.1989,2082.7,2082.1,0.04]
[1625168158049,11.5151,2082.7,2082.1,0.04]
[1625168158198,11.4151,2082.7,2082.1,0.04]
[1625168158445,16.4251,2082.7,2082.1,0.04]
[1625168158702,9.3262,2082.7,2082.0,0.0121269]
[1625168158945,0.08,2082.6,2082.0,0.0121269]
[1625168159263,15.5052,2082.7,2082.0,0.0121269]
[1625168159357,10.4952,2082.7,2082.0,0.0121269]
[1625168159758,15.5052,2082.7,2082.0,0.0121269]
[1625168159856,10.4952,2082.7,2082.0,0.0121269]
[1625168160168,7.20027,2082.3,2082.0,0.0121269]
[1625168160910,0.06,2082.2,2082.0,0.0121269]
[1625168161266,8.98147,2082.3,2082.0,0.0121269]
[1625168161367,1.7812,2082.3,2082.0,0.0121269]
[1625168161697,12.00109,2083.0,2082.1,29.9]
[1625168161893,12.00109,2083.0,2082.0,0.0121269]
[1625168162398,11.39742,2083.2,2082.0,0.0121269]
[1625168162549,22.32516,2083.8,2082.1,0.92875369]
[1625168162550,3.1,2083.6,2082.1,0.92875369]
[1625168162695,11.99766,2083.8,2082.1,8.99301431]
[1625168162798,11.99766,2083.8,2082.2,0.15]
[1625168162893,11.99766,2083.8,2082.2,15.15]
[1625168162997,11.99766,2083.8,2082.3,0.07082473]
[1625168163098,3.5983372,2084.0,2082.3,0.0770475]
[1625168163194,3.5983372,2084.0,2082.4,0.15]
[1625168163294,20.3183,2084.6,2082.5,0.10747566]
[1625168163398,7.19401,2083.7,2082.5,5.04137881]
[1625168163498,7.19401,2083.7,2082.6,16.07875369]
[1625168163767,11.99524,2084.2,2082.7,39.9]
[1625168163865,11.99524,2084.2,2082.8,15.0856399]
[1625168163958,11.99524,2084.2,2082.8,23.2356399]
[1625168164109,11.99524,2084.2,2082.8,33.2456399]
[1625168164206,11.99524,2084.2,2082.8,28.45485467]
[1625168164305,11.99524,2084.2,2082.8,5.45485467]
[1625168164407,11.99524,2084.2,2082.9,3.05764608]
[1625168164506,11.99524,2084.2,2082.9,8.06764608]
[1625168164758,7.19327,2083.8,2082.9,3.05764608]
[1625168164857,4.7426,2083.8,2082.8,0.00604388]
[1625168165330,3.5985645,2083.4,2082.8,3.88e-06]
[1625168165473,4.5572645,2083.4,2082.8,3.88e-06]
[1625168166015,9.5672645,2083.4,2082.8,3.88e-06]
[1625168166164,7.19782,2083.1,2082.8,3.88e-06]
[1625168166313,11.99492,2083.1,2082.8,3.88e-06]
[1625168167566,0.00599612,2082.7,2082.0,2.87393965]
[1625168167669,11.99492,2083.1,2082.0,17.87393965]
[1625168167670,4.7971,2083.1,2082.0,17.87393965]
[1625168167765,9.59709,2083.2,2082.0,17.87393965]
[1625168167867,9.59709,2083.2,2082.0,2.87393965]
[1625168167968,23.86919,2083.2,2082.0,2.87393965]
[1625168168120,23.86919,2083.2,2082.0,0.0121269]
[1625168168273,0.1,2083.1,2082.0,0.0121269]
[1625168168363,5.1238,2083.1,2082.0,0.0121269]
[1625168168518,10.1338,2083.1,2082.0,0.0121269]
[1625168168619,10.0338,2083.1,2082.0,0.0121269]
[1625168169019,14.00149,2082.6,2082.0,0.0121269]
[1625168169119,22.00149,2082.6,2082.0,0.0121269]
[1625168169218,17.4136,2082.6,2082.0,0.0121269]
[1625168169516,9.4136,2082.6,2082.0,0.0121269]
[1625168169619,17.4136,2082.6,2082.0,0.0121269]
[1625168169769,8.04,2082.5,2082.0,0.0121269]
[1625168169872,0.04,2082.5,2082.0,0.0121269]
[1625168169975,5.05,2082.5,2082.0,0.0121269]
[1625168170119,0.04,2082.5,2082.0,0.0121269]
[1625168170228,5.01,2082.5,2082.0,0.0121269]
[1625168170513,7.20126,2082.3,2082.0,0.0121269]
[1625168170713,12.21126,2082.3,2082.0,0.0121269]
[1625168171167,20.21126,2082.3,2082.0,6.9e-06]
[1625168171266,0.1,2082.2,2081.4,4.1793047]
[1625168171372,3.6013472,2082.0,2081.4,4.1793047]
[1625168171523,7.2027,2081.8,2081.4,4.1793047]
[1625168172017,12.2127,2081.8,2081.4,4.1793047]
[1625168172122,7.2027,2081.8,2081.4,4.1793047]
[1625168172219,0.1,2081.7,2080.2,2.85634208]
[1625168172430,0.11668552,2081.7,2079.8,0.02077366]
[1625168172522,1.28908552,2081.7,2079.8,0.02077366]
[1625168172622,7.20618,2081.0,2078.7,9.72797]
[1625168172988,0.15,2080.9,2078.6,29.9]
[1625168173080,2.2608,2080.9,2078.6,29.9]
[1625168173188,2.2608,2080.9,2078.0,0.0221432]
[1625168173189,15.0,2080.8,2078.0,0.0221432]
[1625168173287,20.0,2080.5,2078.0,0.0221432]
[1625168173383,38.2873,2080.5,2078.0,0.0221432]
[1625168173480,38.29953177,2080.5,2078.0,0.0221432]
[1625168173584,30.0,2080.4,2077.4,3.9321432]
[1625168173685,9.61566,2079.8,2077.4,3.9321432]
[1625168173833,1.2148,2079.5,2077.2,0.51691484]
[1625168174029,0.15,2079.4,2077.2,0.51691484]
[1625168174146,0.15893558,2079.4,2077.2,0.51691484]
[1625168174283,20.0,2079.2,2077.2,0.51691484]
[1625168174383,4.4581,2079.2,2077.2,1.484e-05]
[1625168174534,0.15,2079.1,2077.2,1.484e-05]
[1625168174632,33.5,2078.8,2076.4,4.10146882]
[1625168174741,7.21788,2078.7,2076.4,4.10146882]
[1625168174846,0.15,2078.6,2076.4,4.10146882]
[1625168175050,0.1615703,2078.6,2076.4,4.10146882]
[1625168175195,20.1615703,2078.6,2076.4,4.10146882]
[1625168175398,20.1615703,2078.6,2074.8,5.06235659]
[1625168175399,29.9,2078.4,2074.8,5.06235659]
[1625168175555,20.4041827,2078.3,2074.8,5.08451288]
[1625168175696,8.15,2078.3,2074.8,4.83451288]
[1625168175853,11.37275941,2078.2,2075.3,2.56720971]
[1625168175956,19.38499118,2078.2,2075.3,2.56720971]
[1625168176098,17.17557118,2078.2,2075.3,2.56720971]
[1625168176293,17.17557118,2078.2,2075.3,2.71720971]
[1625168176495,4.16557118,2078.2,2075.3,2.71720971]
[1625168176744,4.16557118,2078.2,2075.4,15.0]
[1625168176845,4.16557118,2078.2,2075.5,0.04641718]
[1625168176945,0.47137118,2078.2,2075.5,0.19641718]
[1625168177047,7.68871118,2078.2,2075.5,0.19641718]
[1625168177148,10.741,2078.8,2075.6,29.9]
[1625168177263,10.741,2078.8,2075.8,3.6]
[1625168177370,10.741,2078.8,2075.7,25.3113]
[1625168177469,10.741,2078.8,2076.1,3.6]
[1625168177620,3.7,2079.4,2076.6,3.6]
[1625168177776,0.24972545,2080.6,2076.7,0.95211069]
[1625168177872,2.0,2080.5,2076.9,3.6]
[1625168178022,2.0,2080.5,2077.9,3.6]
[1625168178167,7.20886,2080.9,2078.5,3.6]
[1625168178320,12.01719,2081.5,2078.6,0.73459097]
[1625168178414,12.01719,2081.5,2078.6,0.77007916]
[1625168178515,12.01719,2081.5,2078.7,0.15]
[1625168178618,12.01719,2081.5,2078.8,0.80211069]
[1625168178815,12.01719,2081.5,2078.8,0.8432698]
[1625168178970,0.15,2081.4,2078.8,0.8432698]
[1625168179071,2.136,2081.4,2078.8,0.8432698]
[1625168179170,2.136,2081.4,2078.8,3.5678698]
[1625168179266,2.136,2081.4,2078.9,4.6516]
[1625168179420,7.2087,2081.7,2079.0,0.72340128]
[1625168179674,3.4048,2081.0,2079.0,0.68294414]
[1625168179776,3.4048,2081.0,2079.1,0.6032992]
[1625168179876,3.4048,2081.0,2079.0,0.49261652]
[1625168179977,3.4048,2081.0,2078.8,0.59860877]
[1625168180176,3.4048,2081.0,2079.1,2.93338026]
[1625168180327,3.4048,2081.0,2079.2,0.56774576]
[1625168180426,3.4048,2081.0,2079.2,0.71774576]
[1625168180525,3.4048,2081.0,2080.1,5.01]
[1625168180681,3.4048,2081.0,2080.1,5.16]
[1625168180782,3.4048,2081.0,2080.1,5.01]
[1625168180976,3.4048,2081.0,2080.1,0.74285987]
[1625168181078,3.4048,2081.0,2079.3,2.93338026]
[1625168181183,3.4048,2081.0,2079.0,0.17340271]
[1625168181432,3.4048,2081.0,2079.1,0.45096566]
[1625168181529,3.4048,2081.0,2079.1,0.4777597]
[1625168181629,3.4048,2081.0,2079.2,0.15]
[1625168181793,20.7912,2081.9,2079.3,0.50630407]
[1625168181992,20.7912,2081.9,2079.4,0.15]
[1625168182089,20.7912,2081.9,2079.5,0.72391346]
[1625168182289,23.3334,2081.4,2079.5,0.72391346]
[1625168182388,3.3334,2081.4,2079.4,0.15]
[1625168182485,3.3334,2081.4,2079.4,0.47754965]
[1625168182583,3.3334,2081.4,2079.1,0.48657983]
[1625168182800,20.0,2081.2,2079.1,0.48657983]
[1625168182939,3.3334,2081.4,2078.3,12.0079]
[1625168182940,20.0,2081.1,2078.3,0.01146437]
[1625168183035,0.01232516,2081.1,2078.3,0.01146437]
[1625168183187,3.3605,2081.0,2078.3,0.01146437]
[1625168183337,20.0,2080.4,2078.3,0.01146437]
[1625168183486,32.74605194,2080.4,2078.3,0.01146437]
[1625168183635,5.01,2080.2,2078.3,0.01146437]
[1625168183740,7.20971,2080.1,2078.3,0.01146437]
[1625168183899,7.30971,2080.1,2078.3,0.01146437]
[1625168184058,7.20971,2080.1,2078.3,0.01146437]
[1625168184204,7.20971,2080.1,2078.4,0.15]
[1625168184362,7.20971,2080.1,2078.3,2.53511852]
[1625168184451,7.20971,2080.1,2077.7,0.46818303]
[1625168184452,16.1,2079.9,2077.7,0.46818303]
[1625168184553,0.0158865,2079.9,2077.5,0.41556768]
[1625168184655,6.15723884,2081.8,2077.7,20.19290246]
[1625168184656,6.39723884,2081.8,2077.7,20.19290246]
[1625168184806,12.01455,2081.6,2078.5,3.6]
[1625168184906,12.01455,2081.6,2078.6,0.80211069]
[1625168185001,12.01455,2081.6,2078.6,0.95211069]
[1625168185160,12.01455,2081.6,2078.6,5.38674095]
[1625168185250,0.00955713,2081.8,2078.6,0.97523574]
[1625168185360,0.00955713,2081.8,2078.7,3.6]
[1625168185505,0.00955713,2081.8,2078.8,0.95211069]
[1625168185599,0.00955713,2081.8,2078.8,0.97762449]
[1625168185798,0.00955713,2081.8,2078.8,4.58151564]
[1625168186056,20.7912,2081.9,2080.0,7.22365024]
[1625168186057,15.80079795,2081.9,2080.0,7.22365024]
[1625168186153,6.179,2082.0,2080.1,0.54238097]
[1625168186294,6.179,2082.0,2080.1,0.69238097]
[1625168186492,6.179,2082.0,2080.1,3.19167212]
[1625168186594,6.179,2082.0,2080.4,5.01]
[1625168186744,10.2096,2082.6,2080.5,0.57138784]
[1625168186841,10.2096,2082.6,2080.5,0.59181953]
[1625168186940,10.2096,2082.6,2080.5,0.02043169]
[1625168187194,12.00919,2083.1,2080.5,0.02043169]
[1625168187293,12.00919,2083.1,2080.5,0.02829221]
[1625168187393,12.15919,2083.1,2080.5,0.02829221]
[1625168187494,2.32894403,2083.0,2080.5,0.00786052]
[1625168187694,2.17,2083.0,2080.5,0.00786052]
[1625168187939,0.16481253,2082.9,2080.5,0.00786052]
[1625168188043,5.01,2082.2,2080.5,0.00786052]
[1625168188293,0.19184186,2082.8,2080.5,0.00786052]
[1625168188392,0.19184186,2082.8,2080.6,7.35168]
[1625168188393,7.40329419,2082.8,2080.6,7.35168]
[1625168188560,10.3439,2083.4,2080.7,5.14639945]
[1625168188754,10.2939,2083.4,2080.7,5.14639945]
[1625168189002,10.2439,2083.4,2080.7,5.14639945]
[1625168189302,10.2439,2083.4,2080.8,0.20795433]
[1625168189406,10.2439,2083.4,2081.4,7.19966]
[1625168189556,10.2439,2083.4,2081.5,5.28221283]